bitfinex/quotes_BTCUSD_20220304
["timestamp","ask_amount","ask_price","bid_price","bid_amount"]
[1646433027922,0.379296,38689.0,38677.0,0.06468]
[1646433028117,0.379296,38689.0,38677.0,2e-05]
[1646433028323,0.379296,38677.0,38666.0,0.129394]
[1646433028519,1.01333428,38687.0,38666.0,0.129394]
[1646433028520,0.379296,38676.0,38666.0,0.129394]
[1646433028719,0.379296,38676.0,38661.0,0.258713]
[1646433028720,2.08847908,38667.0,38662.0,0.064708]
[1646433029331,0.064708,38677.0,38662.0,0.064708]
[1646433029722,2.08847908,38668.0,38662.0,0.064708]
[1646433029921,0.15,38669.0,38662.0,0.064708]
[1646433029922,0.379296,38667.0,38662.0,0.064708]
[1646433030772,0.00163711,38669.0,38662.0,0.064708]
[1646433030773,0.379296,38668.0,38662.0,0.064708]
[1646433030974,2.08847908,38674.0,38662.0,1.064708]
[1646433031170,0.379296,38673.0,38662.0,1.031608]
[1646433031369,0.379296,38673.0,38664.0,0.064703]
[1646433031580,0.45,38682.0,38664.0,0.064703]
[1646433031581,2.08347908,38675.0,38664.0,0.064703]
[1646433031770,0.529296,38677.0,38662.0,1.0]
[1646433031771,0.379296,38673.0,38662.0,1.0]
[1646433032170,0.595809,38682.0,38680.0,0.06955907]
[1646433032369,0.595809,38682.0,38662.0,1.0]
[1646433032370,0.11408596,38677.0,38662.0,1.0]
[1646433032574,2.08347908,38673.0,38666.0,0.064706]
[1646433032769,0.145809,38672.0,38666.0,0.064706]
[1646433033372,0.09066296,38672.0,38666.0,0.064706]
[1646433033772,0.379285,38671.0,38666.0,0.064706]
[1646433033974,0.379285,38671.0,38662.0,0.74118001]
[1646433034223,2.08347908,38676.0,38662.0,0.74118001]
[1646433034422,0.11408596,38677.0,38662.0,0.74118001]
[1646433034619,0.11408596,38677.0,38666.0,0.064706]
[1646433034620,0.10908596,38677.0,38666.0,0.064706]
[1646433034819,0.3,38683.0,38680.0,0.09091404]
[1646433035020,0.379275,38682.0,38680.0,0.09091404]
[1646433035218,2.08347908,38681.0,38680.0,0.09091404]
[1646433035419,2.17415408,38681.0,38680.0,0.09091404]
[1646433036121,0.090675,38681.0,38680.0,0.09091404]
[1646433036318,0.2207594,38681.0,38680.0,0.09091404]
[1646433036519,0.2207594,38681.0,38680.0,0.07591404]
[1646433036726,0.2207594,38681.0,38672.0,0.3]
[1646433036727,0.12805524,38676.0,38672.0,0.3]
[1646433036920,0.379275,38675.0,38671.0,0.3]
[1646433037125,0.12805524,38676.0,38673.0,0.001486]
[1646433037323,0.379275,38675.0,38673.0,0.001486]
[1646433037727,0.379275,38675.0,38673.0,0.301486]
[1646433037970,0.379275,38675.0,38673.0,0.001486]
[1646433038172,0.1041859,38691.0,38680.0,0.37194476]
[1646433038173,2.08347908,38681.0,38680.0,0.37194476]
[1646433038374,0.379275,38681.0,38680.0,0.37194476]
[1646433038773,2.08347908,38689.0,38680.0,0.67194476]
[1646433038973,0.344994,38688.0,38680.0,0.67194476]
[1646433039381,2.08347908,38690.0,38680.0,0.37194476]
[1646433039575,2.05847908,38689.0,38680.0,0.37194476]
[1646433040175,2.05847908,38689.0,38681.0,0.364664]
[1646433040474,0.05408,38684.0,38681.0,0.193991]
[1646433040675,2.05847908,38689.0,38681.0,0.193991]
[1646433040676,0.379184,38688.0,38681.0,0.193991]
[1646433041184,0.04044212,38700.0,38681.0,0.3]
[1646433041185,0.05408,38686.0,38681.0,0.3]
[1646433041380,0.05408,38686.0,38680.0,0.37194476]
[1646433041381,2.05847908,38684.0,38680.0,0.37194476]
[1646433041577,0.379184,38683.0,38680.0,0.37194476]
[1646433041823,2.43766308,38683.0,38680.0,0.37194476]
[1646433042028,0.379184,38683.0,38680.0,0.37194476]
[1646433042425,0.379184,38683.0,38680.0,0.43662376]
[1646433042621,0.379184,38683.0,38680.0,0.73662376]
[1646433042622,0.1300844,38681.0,38680.0,0.73662376]
[1646433042826,0.1300844,38681.0,38680.0,0.43662376]
[1646433042827,0.05408,38681.0,38680.0,0.43662376]
[1646433043020,0.15,38688.0,38680.0,0.43662376]
[1646433043222,1.61255908,38683.0,38680.0,0.37194476]
[1646433043423,0.03822756,38689.0,38680.0,0.37194476]
[1646433043424,0.379182,38682.0,38680.0,0.37194476]
[1646433043623,0.379182,38682.0,38680.0,0.35662476]
[1646433043822,0.379182,38682.0,38681.0,0.001486]
[1646433044222,0.45171286,38682.0,38681.0,0.001486]
[1646433045025,0.379182,38682.0,38681.0,0.301486]
[1646433045227,1.61255908,38688.0,38681.0,0.001486]
[1646433045469,0.379182,38687.0,38681.0,0.001486]
[1646433046171,0.379182,38687.0,38681.0,0.301486]
[1646433046571,1.61255908,38688.0,38681.0,0.001486]
[1646433046572,0.07253086,38683.0,38681.0,0.001486]
[1646433046772,0.45171286,38682.0,38681.0,0.001486]
[1646433047375,0.45171286,38682.0,38681.0,0.002972]
[1646433048374,0.379182,38682.0,38681.0,0.015472]
[1646433048573,0.45171286,38682.0,38681.0,0.015472]
[1646433049218,0.379182,38682.0,38681.0,0.015472]
[1646433049720,0.45171286,38682.0,38681.0,0.015472]
[1646433049916,0.379182,38682.0,38680.0,0.1827914]
[1646433050120,0.379182,38682.0,38680.0,0.2215954]
[1646433050719,0.379182,38681.0,38680.0,0.1827914]
[1646433051121,0.45171286,38681.0,38680.0,0.1827914]
[1646433051521,0.379182,38681.0,38680.0,0.1827914]
[1646433051723,0.45171286,38681.0,38680.0,0.1827914]
[1646433051921,0.379182,38681.0,38680.0,0.1827914]
[1646433052722,2.15708616,38681.0,38680.0,0.1827914]
[1646433053171,2.00708616,38681.0,38680.0,0.1827914]
[1646433053371,2.15708616,38681.0,38680.0,0.1827914]
[1646433054172,2.0845553,38681.0,38680.0,0.1827914]
[1646433055277,2.1099053,38681.0,38680.0,0.1827914]
[1646433055473,2.0955153,38681.0,38680.0,0.1827914]
[1646433055680,2.0955153,38681.0,38673.0,0.002972]
[1646433055681,2.16804616,38681.0,38673.0,0.002972]
[1646433055880,2.16804616,38681.0,38656.0,0.21131075]
[1646433055881,0.02535,38667.0,38656.0,0.21131075]
[1646433056076,0.01473003,38672.0,38655.0,0.001486]
[1646433056077,1.78790908,38663.0,38655.0,0.001486]
[1646433056277,1.78790908,38663.0,38662.0,0.63760888]
[1646433056278,2.54549608,38663.0,38662.0,0.63760888]
[1646433056476,2.52014608,38663.0,38662.0,0.63760888]
[1646433056734,2.59267694,38663.0,38662.0,0.63760888]
[1646433056939,2.52014608,38663.0,38662.0,0.63760888]
[1646433057342,2.56365194,38663.0,38662.0,0.55313206]
[1646433057542,3.17457523,38663.0,38662.0,0.46833206]
[1646433057735,3.72457523,38663.0,38662.0,0.46833206]
[1646433057934,3.72457523,38663.0,38655.0,0.001486]
[1646433057935,0.99977568,38662.0,38655.0,0.001486]
[1646433058136,2.4034163,38656.0,38655.0,0.001486]
[1646433058337,2.79696175,38656.0,38655.0,0.001486]
[1646433058535,0.04161726,38647.0,38643.0,0.001486]
[1646433058738,1.78790908,38644.0,38643.0,0.001486]
[1646433058943,2.16802694,38644.0,38643.0,0.001486]
[1646433059137,2.09549608,38644.0,38643.0,0.001486]
[1646433059536,2.28790908,38644.0,38634.0,0.177674]
[1646433059736,0.32342872,38643.0,38634.0,0.177674]
[1646433059937,1.61255908,38641.0,38634.0,0.177674]
[1646433060141,0.307587,38640.0,38634.0,0.177674]
[1646433060574,0.5,38639.0,38634.0,0.177674]
[1646433060772,0.5,38639.0,38635.0,0.3]
[1646433060773,0.307587,38638.0,38635.0,0.3]
[1646433060970,0.307587,38638.0,38634.0,0.177674]
[1646433061380,0.332937,38638.0,38634.0,0.177674]
[1646433061571,2.54549608,38635.0,38634.0,0.177674]
[1646433061772,0.307587,38635.0,38634.0,0.172674]
[1646433061973,2.06097608,38635.0,38634.0,0.172674]
[1646433062171,1.90176908,38635.0,38634.0,0.172674]
[1646433062375,2.39337908,38635.0,38634.0,0.172674]
[1646433062572,2.48569543,38635.0,38634.0,0.172674]
[1646433062776,2.81242399,38635.0,38634.0,0.172674]
[1646433062971,2.96242399,38635.0,38634.0,0.172674]
[1646433063171,2.81242399,38635.0,38634.0,0.172674]
[1646433063372,2.81242399,38635.0,38634.0,0.1329808]
[1646433063373,3.58777399,38635.0,38634.0,0.1329808]
[1646433063572,4.37147399,38635.0,38634.0,0.1329808]
[1646433063874,3.33989313,38635.0,38634.0,0.1329808]
[1646433064071,3.33989313,38635.0,38622.0,0.57137011]
[1646433064072,0.223136,38634.0,38622.0,0.57137011]
[1646433064322,1.75755908,38623.0,38622.0,0.57137011]
[1646433064535,2.42335508,38623.0,38622.0,0.57137011]
[1646433064722,2.51968508,38623.0,38622.0,0.57137011]
[1646433064918,2.52021286,38623.0,38622.0,0.57137011]
[1646433065118,1.90901102,38623.0,38622.0,0.57137011]
[1646433065324,2.40646102,38623.0,38622.0,0.57137011]
[1646433065519,2.38811324,38623.0,38622.0,0.57137011]
[1646433065720,2.38232102,38623.0,38622.0,0.51794228]
[1646433065920,2.62897497,38623.0,38622.0,0.51794228]
[1646433066221,2.36905439,38623.0,38622.0,0.51794228]
[1646433066421,0.165341,38622.0,38621.0,0.87754567]
[1646433066722,0.76424453,38622.0,38621.0,0.87754567]
[1646433067122,0.76424437,38622.0,38621.0,0.87754567]
[1646433067322,0.11913926,38622.0,38621.0,0.87754567]
[1646433067521,0.28629241,38622.0,38621.0,0.87754567]
[1646433067726,0.58211263,38622.0,38621.0,0.87754567]
[1646433067990,0.28211263,38622.0,38621.0,0.87754567]
[1646433068788,0.28629241,38622.0,38621.0,0.87754567]
[1646433068986,0.28629241,38622.0,38621.0,0.87254567]
[1646433069186,0.38211263,38622.0,38621.0,0.87254567]
[1646433069888,0.38627171,38622.0,38621.0,0.87254567]
[1646433070091,0.38627171,38622.0,38621.0,0.86254567]
[1646433070288,0.38211263,38622.0,38621.0,0.86254567]
[1646433070495,0.38627171,38622.0,38621.0,0.86254567]
[1646433070689,0.38627171,38622.0,38621.0,0.85754567]
[1646433070888,0.38211263,38622.0,38621.0,0.85754567]
[1646433071089,0.88627171,38622.0,38621.0,0.85754567]
[1646433071290,0.88211263,38622.0,38621.0,0.84671545]
[1646433071488,0.88211263,38622.0,38621.0,0.84171545]
[1646433071718,0.73211263,38622.0,38621.0,0.84171545]
[1646433072319,0.11913926,38622.0,38621.0,0.84171545]
[1646433072721,0.20304846,38625.0,38621.0,0.84171545]
[1646433072919,0.47001519,38645.0,38621.0,0.84171545]
[1646433072920,1.5558165,38622.0,38621.0,0.84171545]
[1646433073124,1.43667724,38622.0,38621.0,0.84171545]
[1646433073325,1.44083576,38624.0,38621.0,0.84171545]
[1646433073520,0.05955749,38622.0,38621.0,0.84171545]
[1646433073721,0.00182603,38622.0,38621.0,0.84171545]
[1646433073921,1.43667724,38624.0,38621.0,0.84171545]
[1646433074123,0.70301195,38633.0,38621.0,0.84171545]
[1646433074321,0.00415852,38624.0,38621.0,0.84171545]
[1646433074523,1.43667724,38627.0,38621.0,0.84171545]
[1646433074721,1.0,38633.0,38621.0,0.84171545]
[1646433074722,0.01294333,38631.0,38621.0,0.84171545]
[1646433074922,0.5,38630.0,38622.0,0.3]
[1646433075591,0.5,38630.0,38621.0,0.84171545]
[1646433075798,0.498583,38630.0,38621.0,0.84171545]
[1646433075994,0.02680275,38631.0,38626.0,0.03086074]
[1646433076192,0.02680275,38631.0,38630.0,0.03086074]
[1646433076393,0.51200481,38638.0,38621.0,0.84171545]
[1646433076394,0.5,38638.0,38621.0,0.84171545]
[1646433076593,0.0142262,38651.0,38621.0,0.84171545]
[1646433076594,0.02535,38637.0,38622.0,0.3]
[1646433076894,0.02535,38637.0,38621.0,0.84171545]
[1646433076895,0.05314254,38637.0,38621.0,0.84171545]
[1646433077091,0.02535,38633.0,38621.0,0.84171545]
[1646433077291,1.43667724,38634.0,38621.0,0.84171545]
[1646433077292,0.02535,38630.0,38621.0,0.84171545]
[1646433077590,0.02535,38631.0,38621.0,0.84171545]
[1646433077793,0.03980141,38645.0,38621.0,0.84171545]
[1646433077794,1.43667724,38639.0,38621.0,0.84171545]
[1646433077990,1.43667724,38642.0,38621.0,0.84171545]
[1646433078190,0.3,38641.0,38621.0,0.84171545]
[1646433078590,0.32535,38642.0,38621.0,0.84171545]
[1646433078791,1.43167724,38643.0,38621.0,0.84171545]
[1646433078999,0.11913926,38645.0,38621.0,0.84171545]
[1646433079000,1.43167724,38644.0,38622.0,0.3]
[1646433079220,1.44503112,38648.0,38626.0,0.03086074]
[1646433079418,1.44503112,38648.0,38627.0,0.3]
[1646433079719,0.02680275,38646.0,38625.0,0.3]
[1646433080119,1.43167724,38644.0,38622.0,0.3]
[1646433080319,1.43167724,38644.0,38623.0,0.02535]
[1646433080519,0.16021398,38646.0,38623.0,0.02535]
[1646433080520,0.04107472,38646.0,38626.0,0.03086074]
[1646433080719,0.02680275,38646.0,38627.0,0.3]
[1646433080924,0.02680275,38646.0,38625.0,0.3]
[1646433081119,0.02680275,38646.0,38621.0,0.84171545]
[1646433081120,0.02680275,38646.0,38631.0,0.03086074]
[1646433081320,0.02680275,38646.0,38633.0,0.02535]
[1646433081520,0.02680275,38646.0,38632.0,0.3]
[1646433081719,0.02680275,38646.0,38623.0,0.3]
[1646433081921,0.02680275,38646.0,38621.0,0.84171545]
[1646433082120,0.02680275,38646.0,38622.0,0.29942032]
[1646433082320,0.02680275,38646.0,38623.0,0.02535]
[1646433082519,0.02680275,38646.0,38623.0,0.80905]
[1646433082722,0.02680275,38646.0,38625.0,0.7837]
[1646433082723,0.0006226,38629.0,38625.0,0.7837]
[1646433083371,0.0006226,38629.0,38626.0,0.782]
[1646433084673,0.32535,38658.0,38627.0,0.02535]
[1646433084872,0.32535,38658.0,38629.0,0.02535]
[1646433085070,0.32535,38658.0,38631.0,0.02535]
[1646433085071,0.00415167,38657.0,38631.0,0.02535]
[1646433085370,0.00415167,38657.0,38629.0,0.29933359]
[1646433085571,0.00415167,38657.0,38632.0,0.7837]
[1646433085772,0.00415167,38657.0,38626.0,0.45]
[1646433085971,0.00061634,38628.0,38627.0,0.2060351]
[1646433086174,0.00061634,38628.0,38624.0,0.2]
[1646433086175,0.00061634,38628.0,38624.0,0.40586869]
[1646433086372,0.00061634,38628.0,38626.0,0.7837]
[1646433086571,0.00061634,38628.0,38627.0,0.7837]
[1646433087021,0.00061634,38628.0,38623.0,9.598e-05]
[1646433087318,0.00061634,38628.0,38623.0,0.20009598]
[1646433087618,0.00061634,38628.0,38627.0,0.7837]
[1646433087818,0.00061634,38628.0,38627.0,1.0837]
[1646433088018,0.01353549,38659.0,38628.0,0.02535]
[1646433088218,0.01353549,38659.0,38632.0,0.7837]
[1646433088418,0.01353549,38659.0,38633.0,1.0837]
[1646433088825,0.02166314,38661.0,38633.0,1.0837]
[1646433089017,0.01403624,38660.0,38634.0,0.7837]
[1646433089221,0.01403624,38660.0,38636.0,0.7837]
[1646433089522,0.01403624,38660.0,38638.0,0.7837]
[1646433089717,0.01403624,38660.0,38640.0,0.7837]
[1646433089918,0.01403624,38660.0,38641.0,1.0837]
[1646433090321,0.00414255,38659.0,38641.0,1.0837]
[1646433090570,0.01403624,38660.0,38641.0,1.0837]
[1646433090770,0.01403624,38660.0,38640.0,0.7837]
[1646433090971,0.01403624,38660.0,38640.0,0.7587]
[1646433093976,0.6,38682.0,38657.0,0.2]
[1646433094235,0.6,38682.0,38652.0,0.4508]
[1646433094236,0.6,38682.0,38658.0,0.3]
[1646433094439,0.6,38682.0,38660.0,0.379669]
[1646433094636,0.6,38682.0,38661.0,0.4518]
[1646433094835,0.004,38692.0,38663.0,0.17715]
[1646433095036,0.25224539,38700.0,38664.0,0.7645]
[1646433095037,0.03873218,38700.0,38664.0,0.7645]
[1646433095234,0.03873218,38700.0,38665.0,0.1]
[1646433095235,1.43167724,38699.0,38665.0,0.1]
[1646433095433,1.43167724,38699.0,38666.0,0.3]
[1646433095633,1.43167724,38699.0,38669.0,0.7837]
[1646433095837,1.47379812,38700.0,38671.0,0.7837]
[1646433096038,1.47379812,38700.0,38670.0,0.3]
[1646433096039,0.03873218,38700.0,38673.0,0.7837]
[1646433096239,0.03873218,38700.0,38674.0,0.3]
[1646433096437,0.03873218,38700.0,38674.0,0.295]
[1646433096640,0.03873218,38700.0,38674.0,1.0787]
[1646433096836,0.03873218,38700.0,38674.0,1.19206636]
[1646433097036,0.03873218,38700.0,38674.0,1.1787]
[1646433097236,0.03873218,38700.0,38674.0,1.1287]
[1646433097738,0.03873218,38700.0,38676.0,0.9355]
[1646433098175,0.03873218,38700.0,38678.0,0.7837]
[1646433098373,0.03873218,38700.0,38679.0,0.4]
[1646433098574,0.03873218,38700.0,38674.0,0.325]
[1646433098777,0.3,38699.0,38674.0,0.325]
[1646433098976,0.03873218,38700.0,38675.0,0.3]
[1646433099376,0.03873218,38700.0,38674.0,0.325]
[1646433099579,0.03873218,38700.0,38675.0,0.7837]
[1646433099777,0.3,38699.0,38675.0,0.7837]
[1646433100176,0.03873218,38700.0,38675.0,0.7837]
[1646433100375,0.03873218,38700.0,38674.0,0.225]
[1646433100578,1.45476632,38700.0,38676.0,0.05]
[1646433100779,1.42167724,38695.0,38677.0,0.3]
[1646433100978,1.42167724,38695.0,38674.0,0.2]
[1646433101179,1.42581984,38699.0,38674.0,0.2]
[1646433101480,1.42167724,38699.0,38674.0,0.2]
[1646433101730,0.31236402,38698.0,38674.0,0.2]
[1646433102120,1.45476632,38700.0,38675.0,0.3]
[1646433102519,1.42167724,38700.0,38675.0,0.35]
[1646433102723,1.435703,38700.0,38675.0,0.75]
[1646433102921,1.42167724,38699.0,38676.0,0.1518]
[1646433103123,0.03845079,38711.0,38677.0,0.3]
[1646433103124,1.42167724,38703.0,38677.0,0.3]
[1646433103324,0.03845079,38711.0,38677.0,0.35]
[1646433103520,1.42167724,38703.0,38681.0,0.7837]
[1646433103721,1.42167724,38703.0,38684.0,0.7837]
[1646433104121,0.0041258,38710.0,38684.0,0.7837]
[1646433104326,1.42580304,38710.0,38686.0,0.7837]
[1646433104522,0.25,38722.0,38685.0,0.3]
[1646433104523,1.42167724,38713.0,38688.0,0.7837]
[1646433104723,1.42167724,38713.0,38690.0,0.7837]
[1646433104921,1.42167724,38713.0,38692.0,0.7837]
[1646433105124,0.15,38717.0,38694.0,0.7837]
[1646433105325,0.4558,38719.0,38695.0,0.299848]
[1646433105572,0.4687,38727.0,38690.0,0.17715]
[1646433105573,0.37759539,38731.0,38696.0,0.7837]
[1646433105772,0.01558509,38728.0,38698.0,0.7837]
[1646433105975,0.12535,38731.0,38701.0,0.02535]
[1646433106270,0.12535,38731.0,38702.0,0.7837]
[1646433106271,1.42167724,38727.0,38702.0,0.7837]
[1646433106473,1.42167724,38727.0,38703.0,0.7837]
[1646433106669,1.41667724,38727.0,38702.0,0.8337]
[1646433106875,0.3,38726.0,38702.0,0.05]
[1646433107070,0.3,38726.0,38697.0,0.7645]
[1646433107271,0.3,38726.0,38698.0,0.05]
[1646433107474,0.3,38726.0,38698.0,0.26442379]
[1646433107771,1.41667724,38733.0,38701.0,0.7837]
[1646433107974,0.03835288,38734.0,38704.0,0.02535]
[1646433108175,1.45503012,38734.0,38705.0,0.96085]
[1646433108374,1.45503012,38734.0,38707.0,0.79679804]
[1646433108673,1.41667724,38731.0,38708.0,0.3]
[1646433108875,1.45503012,38734.0,38709.0,0.05]
[1646433109074,1.45503012,38734.0,38710.0,0.3]
[1646433109327,0.45152578,38747.0,38710.0,0.3]
[1646433109328,0.15,38738.0,38711.0,0.379669]
[1646433109532,0.499,38746.0,38712.0,0.3]
[1646433109725,0.499,38746.0,38713.0,0.7837]
[1646433110024,0.15,38738.0,38717.0,0.7837]
[1646433110229,0.15,38751.0,38717.0,0.7837]
[1646433110230,0.1499334,38741.0,38719.0,0.7837]
[1646433110429,0.499,38759.0,38720.0,0.3]
[1646433110628,0.6206,38760.0,38720.0,0.3]
[1646433110629,0.00412364,38756.0,38720.0,0.30568582]
[1646433110826,0.01238976,38763.0,38724.0,0.7837]
[1646433110827,0.22025884,38763.0,38724.0,0.7837]
[1646433111028,0.22025884,38763.0,38725.0,0.3]
[1646433111029,0.06458,38759.0,38725.0,0.3]
[1646433111225,0.06458,38759.0,38722.0,0.3]
[1646433111429,0.05788,38759.0,38724.0,0.06202785]
[1646433111626,0.05788,38759.0,38725.0,0.3]
[1646433111927,0.129163,38764.0,38725.0,1.0837]
[1646433112131,0.3,38763.0,38729.0,0.7837]
[1646433112328,0.499,38767.0,38731.0,0.7837]
[1646433112528,0.3,38766.0,38733.0,0.7837]
[1646433112728,0.5,38766.0,38736.0,0.7837]
[1646433112977,0.5,38766.0,38737.0,1.542042]
[1646433112978,0.49717596,38766.0,38737.0,1.542042]
[1646433113181,0.01440281,38774.0,38738.0,1.0837]
[1646433113579,0.3,38774.0,38740.0,0.7837]
[1646433113778,0.3,38774.0,38770.0,0.485]
[1646433113979,0.4935,38775.0,38770.0,0.05597618]
[1646433114178,0.52350618,38785.0,38770.0,0.05597618]
[1646433114179,0.3,38781.0,38770.0,0.05597618]
[1646433114378,0.244,38784.0,38770.0,0.05097618]
[1646433114579,0.6435,38788.0,38770.0,0.05097618]
[1646433114580,0.02487865,38780.0,38770.0,0.05097618]
[1646433115178,0.01721122,38780.0,38770.0,0.05097618]
[1646433115678,0.01721122,38780.0,38770.0,0.05061918]
[1646433115877,0.4935,38792.0,38780.0,0.47778878]
[1646433116076,0.4935,38792.0,38780.0,0.13795423]
[1646433116279,0.3,38791.0,38780.0,0.13795423]
[1646433116477,0.181188,38789.0,38780.0,0.13795423]
[1646433116926,0.00412513,38788.0,38780.0,0.13186223]
[1646433117127,0.17531313,38789.0,38780.0,0.13186223]
[1646433117335,0.17031313,38789.0,38780.0,0.13186223]
[1646433118426,0.17031313,38789.0,38780.0,0.13150623]
[1646433119329,0.14221313,38789.0,38780.0,0.13150623]
[1646433119533,0.3,38802.0,38782.0,0.379669]
[1646433119733,0.3,38804.0,38780.0,0.13130474]
[1646433120037,0.3,38806.0,38780.0,0.18130474]
[1646433120230,0.3,38806.0,38781.0,0.7837]
[1646433120231,0.4669334,38803.0,38781.0,0.7837]
[1646433120705,0.4669334,38803.0,38780.0,0.17833019]
[1646433121104,0.3,38806.0,38780.0,0.17833019]
[1646433121302,0.00020791,38814.0,38780.0,0.17833019]
[1646433121303,0.3,38810.0,38780.0,0.17833019]
[1646433121506,0.00020791,38814.0,38780.0,0.17675919]
[1646433122004,0.3794,38816.0,38781.0,0.3]
[1646433122203,0.00020794,38814.0,38783.0,0.038684]
[1646433122405,0.00020794,38814.0,38784.0,0.3]
[1646433122803,0.00020794,38814.0,38784.0,0.37715]
[1646433123206,0.314489,38820.0,38785.0,0.7837]
[1646433123207,0.064489,38820.0,38785.0,0.7837]
[1646433123407,0.01446879,38821.0,38787.0,0.7837]
[1646433123408,0.15,38813.0,38787.0,0.7837]
[1646433123605,0.19717596,38807.0,38788.0,0.3]
[1646433123810,0.25,38808.0,38788.0,0.3]
[1646433124008,0.00020795,38814.0,38788.0,0.05]
[1646433124237,0.25,38816.0,38790.0,0.7837]
[1646433124440,0.01282557,38818.0,38792.0,0.7837]
[1646433124638,0.42738391,38817.0,38793.0,0.3]
[1646433124837,0.42738391,38817.0,38793.0,0.05]
[1646433125037,0.42738391,38817.0,38794.0,0.3]
[1646433125241,0.03911613,38822.0,38794.0,0.78870001]
[1646433125440,0.03399613,38822.0,38795.0,0.3]
[1646433125739,0.03399613,38822.0,38820.0,0.5]
[1646433125941,0.18461949,38798.0,38796.0,0.4833]
[1646433126140,0.02899613,38822.0,38796.0,0.17958049]
[1646433126341,0.02899613,38822.0,38796.0,0.84852]
[1646433126640,0.02899613,38822.0,38796.0,0.06482]
[1646433126838,0.02891323,38822.0,38796.0,0.06482]
[1646433127240,0.02891323,38822.0,38798.0,0.7837]
[1646433127541,0.02391323,38822.0,38802.0,0.038671]
[1646433127972,0.00412616,38821.0,38803.0,0.3]
[1646433128176,0.02391323,38822.0,38802.0,0.07993]
[1646433128370,0.02391323,38822.0,38803.0,1.0518]
[1646433128371,0.01391323,38822.0,38803.0,1.0518]
[1646433128572,0.00891323,38822.0,38803.0,1.0518]
[1646433128770,0.00391323,38822.0,38803.0,1.0518]
[1646433128973,0.17738391,38822.0,38803.0,1.0518]
[1646433129170,0.01582286,38832.0,38803.0,1.0518]
[1646433129371,0.01582286,38832.0,38804.0,0.4946]
[1646433129571,0.01582286,38832.0,38804.0,0.23048682]
[1646433129774,0.31582286,38832.0,38804.0,0.23048682]
[1646433129972,0.31582286,38832.0,38803.0,0.93766273]
[1646433130173,0.30582286,38832.0,38803.0,0.7518]
[1646433130378,0.72820677,38832.0,38803.0,0.7446968]
[1646433130577,0.72238391,38832.0,38804.0,0.74648752]
[1646433130774,0.00020814,38819.0,38814.0,6.439e-05]
[1646433131752,0.3,38830.0,38806.0,0.7837]
[1646433131949,0.00020814,38818.0,38813.0,6.439e-05]
[1646433132151,0.02055814,38828.0,38813.0,6.439e-05]
[1646433132350,0.17738391,38829.0,38813.0,6.439e-05]
[1646433132549,0.245,38828.0,38813.0,6.439e-05]
[1646433132751,0.545,38828.0,38806.0,0.7837]
[1646433133052,0.57035,38828.0,38806.0,0.7837]
[1646433133252,0.27035,38828.0,38806.0,0.7837]
[1646433133652,0.17738391,38824.0,38806.0,0.7837]
[1646433134453,0.17238391,38824.0,38806.0,0.7837]
[1646433134654,0.17238391,38822.0,38806.0,0.7837]
[1646433135577,0.00020839,38820.0,38810.0,7.74e-05]
[1646433135778,6.19e-06,38809.0,38808.0,0.7837]
[1646433136078,0.02535,38830.0,38808.0,0.73733065]
[1646433136275,0.17238391,38822.0,38808.0,0.73733065]
[1646433137276,0.19759291,38822.0,38808.0,0.73733065]
[1646433137678,0.17224291,38822.0,38808.0,0.43733065]
[1646433137877,0.3,38829.0,38808.0,0.43733065]
[1646433138078,0.02535,38829.0,38808.0,0.43733065]
[1646433138281,0.19759291,38822.0,38808.0,0.43733065]
[1646433138478,0.17224291,38822.0,38808.0,0.43733065]
[1646433139078,0.02535,38821.0,38808.0,0.43733065]
[1646433139324,0.17224291,38822.0,38805.0,0.05]
[1646433139523,0.3,38828.0,38805.0,0.91843]
[1646433139727,0.17224291,38822.0,38805.0,0.91843]
[1646433139923,0.17224291,38822.0,38805.0,0.13473]
[1646433140225,0.02535,38821.0,38805.0,0.13473]
[1646433140425,0.02535,38821.0,38804.0,0.79648752]
[1646433140426,0.02535,38821.0,38813.0,8.559e-05]
[1646433141226,0.02535,38821.0,38805.0,0.3]
[1646433141627,0.02535,38821.0,38813.0,8.559e-05]
[1646433141825,0.02535,38819.0,38813.0,8.559e-05]
[1646433142424,0.02535,38819.0,38805.0,0.3]
[1646433142625,0.17224291,38820.0,38805.0,0.3]
[1646433142826,0.00020898,38822.0,38812.0,8.559e-05]
[1646433143591,0.02535,38816.0,38805.0,0.3]
[1646433143891,0.02535,38816.0,38793.0,0.077368]
[1646433143892,0.24086125,38803.0,38794.0,0.3]
[1646433144091,0.24086125,38803.0,38795.0,0.5]
[1646433144295,0.02535,38802.0,38795.0,0.5]
[1646433144494,0.02535,38802.0,38780.0,0.13130474]
[1646433144495,0.02535,38802.0,38787.0,0.01444867]
[1646433144693,0.02535,38798.0,38781.0,0.7889]
[1646433144895,0.02535,38794.0,38780.0,0.13130474]
[1646433145093,0.02535,38791.0,38780.0,0.13130474]
[1646433145291,0.14968256,38775.0,38774.0,0.06451108]
[1646433145496,0.17503256,38775.0,38774.0,0.06451108]
[1646433145794,0.17503256,38775.0,38771.0,0.7889]
[1646433145795,0.14968256,38775.0,38771.0,0.7819]
[1646433145993,0.14968256,38775.0,38770.0,0.05061918]
[1646433146393,0.14968256,38775.0,38765.0,0.002]
[1646433146394,0.14724481,38775.0,38771.0,8.568e-05]
[1646433146839,0.14724481,38775.0,38765.0,0.00108568]
[1646433147034,0.31948772,38775.0,38765.0,0.00108568]
[1646433147235,0.00413873,38774.0,38773.0,0.001]
[1646433147434,0.31368773,38774.0,38773.0,0.001]
[1646433147636,0.09403773,38774.0,38773.0,0.001]
[1646433147834,0.089899,38774.0,38773.0,0.001]
[1646433148034,0.389899,38774.0,38773.0,0.001]
[1646433148235,0.245,38763.0,38745.0,0.26001366]
[1646433148435,0.245,38763.0,38740.0,0.003]
[1646433148436,0.02535,38761.0,38740.0,0.64647529]
[1646433148634,0.02535,38761.0,38741.0,0.5]
[1646433148837,0.17224291,38764.0,38742.0,0.06456]
[1646433148838,0.41724291,38764.0,38742.0,0.06456]
[1646433149033,0.17224291,38755.0,38742.0,0.06456]